bitfinex/quotes_ETHUSD_20250525
["timestamp","ask_amount","ask_price","bid_price","bid_amount"]
[1748136622415,0.5117,2493.4,2493.2,12.006]
[1748136623104,0.56184078,2493.4,2493.2,12.006]
[1748136623297,0.5117,2493.4,2493.2,12.006]
[1748136623499,0.398687,2493.3,2493.2,12.006]
[1748136624115,0.398687,2493.3,2492.3,0.7944]
[1748136624319,0.398687,2493.3,2492.5,8.0]
[1748136625199,0.5117,2493.4,2492.5,8.0]
[1748136626083,0.5117,2493.4,2492.6,0.7728]
[1748136626586,0.5117,2493.4,2492.8,8.0]
[1748136627617,0.5117,2493.4,2492.9,23.822]
[1748136627825,0.5117,2493.4,2492.8,8.0]
[1748136628127,0.5317,2493.9,2492.9,0.7728]
[1748136628683,0.5317,2493.9,2493.0,0.7616]
[1748136629518,0.02,2493.9,2493.0,0.7616]
[1748136632603,0.02,2493.9,2493.2,0.7616]
[1748136632826,0.02,2493.9,2493.4,0.7616]
[1748136633514,0.02,2493.9,2493.5,0.55]
[1748136633711,0.02,2493.9,2493.7,0.55]
[1748136633920,0.02,2493.9,2493.8,1.3125]
[1748136635445,0.02,2494.9,2493.9,0.55]
[1748136635768,0.02,2494.9,2494.1,0.7625]
[1748136636275,0.02,2494.9,2494.3,0.7625]
[1748136636819,0.02,2494.9,2494.5,0.7625]
[1748136637336,0.02,2494.9,2494.7,0.7625]
[1748136637551,0.02,2494.9,2494.8,41.061]
[1748136638259,0.02,2494.9,2494.8,17.8215]
[1748136638564,0.02,2494.9,2494.8,9.3125]
[1748136639817,0.02,2495.9,2494.9,8.55]
[1748136639967,0.02,2495.9,2495.0,0.7787]
[1748136640135,2.71012294,2495.8,2494.8,0.7787]
[1748136640335,0.32811574,2495.7,2495.1,11.999]
[1748136640541,0.5117,2495.6,2495.1,11.999]
[1748136641168,0.5117,2495.6,2494.5,1.18097586]
[1748136641368,0.5117,2495.4,2494.6,11.999]
[1748136641737,0.5117,2495.4,2494.7,8.0]
[1748136642092,0.5117,2495.7,2494.8,0.7787]
[1748136643986,0.5117,2495.7,2494.9,11.997]
[1748136644187,0.5117,2495.6,2494.5,1.18485428]
[1748136644400,0.5117,2495.6,2495.0,11.997]
[1748136645095,0.5117,2495.4,2494.5,0.7787]
[1748136645239,0.5117,2495.4,2495.1,11.997]
[1748136645435,0.5117,2495.4,2495.2,11.997]
[1748136646943,0.83388229,2495.4,2495.2,11.997]
[1748136647146,0.5117,2495.4,2495.2,11.997]
[1748136647367,0.5117,2495.8,2495.2,11.997]
[1748136647641,0.5117,2495.8,2495.3,23.771]
[1748136647882,0.5117,2495.8,2495.2,11.997]
[1748136648440,2.71012294,2495.5,2494.5,0.7787]
[1748136648671,0.5117,2495.3,2494.6,11.996]
[1748136648868,0.5117,2495.1,2494.6,11.996]
[1748136650994,0.5117,2495.1,2494.1,0.7787]
[1748136651197,8.0,2494.9,2493.8,0.7787]
[1748136651404,0.5117,2494.8,2494.2,11.996]
[1748136651575,1.63388229,2494.8,2494.2,11.996]
[1748136651780,0.5117,2494.8,2494.2,11.996]
[1748136652080,0.5117,2495.3,2494.2,12.7747]
[1748136652720,3.22182294,2495.3,2494.2,0.7787]
[1748136652875,0.5117,2495.2,2494.3,11.996]
[1748136653210,0.32218229,2495.1,2494.3,11.996]
[1748136653417,0.5117,2495.2,2494.3,11.996]
[1748136655029,0.5117,2495.2,2494.0,1.16899011]
[1748136655298,0.5117,2495.1,2494.0,0.7787]
[1748136655489,0.5117,2495.1,2494.1,11.996]
[1748136656069,0.56180967,2495.1,2494.1,11.996]
[1748136656468,0.56180967,2495.1,2494.2,11.996]
[1748136656886,0.5117,2495.0,2494.2,11.996]
[1748136657091,0.60010967,2494.9,2493.2,0.19547956]
[1748136657287,0.5117,2494.7,2493.4,8.7787]
[1748136657498,0.5117,2494.7,2493.6,8.0]
[1748136657827,0.5117,2494.7,2493.5,0.7787]
[1748136658450,0.5117,2494.7,2493.6,0.55]
[1748136658710,0.5117,2494.7,2493.7,0.8045]
[1748136660003,0.5117,2495.4,2493.7,0.8045]
[1748136660308,0.37255271,2495.3,2493.9,0.8045]
[1748136660487,0.37255271,2495.3,2493.7,0.55]
[1748136660695,0.37255271,2495.3,2494.0,0.8045]
[1748136660876,0.37255271,2495.3,2494.3,0.8045]
[1748136661514,0.5117,2495.4,2494.3,0.8045]
[1748136661688,0.5117,2495.4,2494.4,1.18204051]
[1748136662588,0.5117,2495.4,2494.4,0.37754051]
[1748136662780,0.5117,2495.4,2494.5,0.8045]
[1748136663098,0.5117,2495.4,2494.5,1.18204051]
[1748136663301,0.88425271,2495.7,2494.7,1.5045]
[1748136663641,0.5117,2495.7,2494.9,8.0]
[1748136664114,0.5117,2496.2,2495.0,0.8241]
[1748136664322,0.5117,2496.2,2495.0,1.20164051]
[1748136665303,0.5117,2496.2,2495.0,1.59919109]
[1748136665707,0.5117,2496.2,2495.1,0.37754051]
[1748136666078,0.5117,2496.2,2495.3,0.8241]
[1748136667219,0.5117,2496.2,2495.4,11.994]
[1748136667618,0.5117,2496.2,2495.5,41.005]
[1748136668494,0.5117,2496.2,2495.5,23.989]
[1748136668804,0.5117,2496.2,2495.6,29.01]
[1748136668990,0.5117,2496.2,2495.6,11.994]
[1748136669192,0.5117,2496.2,2495.0,0.39755058]
[1748136669420,0.5117,2495.8,2495.0,0.7585]
[1748136669611,0.5117,2495.8,2495.1,11.994]
[1748136670116,0.5117,2495.8,2494.3,0.47857477]
[1748136670286,0.5117,2495.6,2494.8,11.993]
[1748136670480,0.56179758,2495.6,2494.8,11.993]
[1748136670682,0.5617975,2495.6,2494.8,11.993]
[1748136671030,0.5117,2495.4,2494.9,11.993]
[1748136672236,0.5117,2495.4,2495.0,8.0]
[1748136673649,0.5117,2495.4,2494.9,11.993]
[1748136674705,0.5117,2495.4,2494.4,0.3980891]
[1748136674906,0.5117,2495.4,2494.8,11.994]
[1748136675133,0.5117,2495.2,2494.8,11.994]
[1748136675338,0.5117,2495.2,2494.9,11.994]
[1748136677548,0.5117,2495.2,2495.0,41.002]
[1748136677982,0.5117,2495.2,2495.0,17.015]
[1748136678308,0.5117,2495.4,2494.9,11.994]
[1748136678621,2.71012294,2496.1,2494.9,11.994]
[1748136678622,0.5117,2495.6,2495.0,8.0]
[1748136680369,0.5117,2495.6,2495.1,0.7589]
[1748136681165,0.5117,2495.6,2495.2,11.994]
[1748136682771,0.5117,2495.6,2494.8,0.7589]
[1748136683065,0.5117,2495.6,2494.9,11.994]
[1748136683267,0.55,2495.4,2494.4,1.22766119]
[1748136683573,0.5117,2495.3,2495.0,11.994]
[1748136683751,0.5117,2495.3,2494.4,1.22766119]
[1748136683958,0.5117,2495.3,2494.8,11.994]
[1748136684160,2.71012294,2495.1,2494.0,0.8153]
[1748136684329,0.5117,2494.9,2493.8,0.47857477]
[1748136684532,0.5117,2494.9,2494.8,11.994]
[1748136684754,1.0617,2494.9,2494.8,11.994]
[1748136685068,0.5117,2494.9,2494.8,11.994]
[1748136686281,0.5117,2494.9,2493.8,0.40293567]
[1748136686282,0.5117,2494.9,2493.7,0.8153]
[1748136686481,0.55,2494.9,2494.8,11.994]
[1748136686681,2.1938517,2494.9,2494.8,11.994]
[1748136686855,1.0617,2494.9,2494.8,11.994]
[1748136687544,1.0617,2494.9,2494.8,29.011]
[1748136688162,1.0617,2494.9,2494.8,11.994]
[1748136688677,0.5117,2494.9,2494.8,11.994]
[1748136690011,0.50842682,2494.9,2494.8,11.994]
[1748136691119,1.05842682,2494.9,2494.8,11.994]
[1748136691313,9.4352818,2494.9,2494.8,11.994]
[1748136691813,0.55,2494.8,2493.6,0.7925]
[1748136692019,0.55,2494.8,2494.7,12.696]
[1748136692872,1.0584,2494.8,2494.7,12.696]
[1748136693535,0.5084,2494.8,2494.7,12.696]
[1748136693692,0.92293779,2494.8,2494.7,12.696]
[1748136696716,1.47293779,2494.8,2494.7,0.7]
[1748136696914,1.5230537,2494.8,2494.7,12.697]
[1748136697218,22.12193779,2494.8,2494.7,0.7]
[1748136697417,22.12193779,2494.8,2494.7,11.997]
[1748136697637,22.12193779,2494.8,2494.7,46.262]
[1748136699526,22.12193779,2494.8,2494.7,28.986]
[1748136699725,22.12193779,2494.8,2494.7,16.989]
[1748136699929,22.12193779,2494.8,2494.7,11.999]
[1748136700365,22.12193779,2494.8,2493.1,0.8156]
[1748136700366,0.5084,2494.4,2493.1,0.8156]
[1748136700567,2.71012294,2494.1,2493.3,8.0]
[1748136702432,2.71012294,2494.1,2493.4,11.999]
[1748136703261,1.43063586,2494.2,2493.4,11.999]
[1748136703626,1.0584,2494.2,2493.4,11.999]
[1748136707586,1.0584,2494.2,2493.5,16.993]
[1748136707948,10.7584,2494.4,2493.6,0.7554]
[1748136708286,10.25,2494.4,2493.6,0.7554]
[1748136708692,0.5084,2494.9,2493.6,0.7554]
[1748136709250,3.21852294,2495.2,2493.6,0.7554]
[1748136709988,0.5084,2495.2,2493.6,0.7554]
[1748136710190,1.62147007,2495.2,2493.8,0.7554]
[1748136710554,2.71012294,2495.1,2493.8,0.7554]
[1748136710953,1.99377072,2495.2,2493.8,0.7554]
[1748136711891,2.71012294,2494.8,2493.8,0.7554]
[1748136712059,0.55850993,2494.7,2493.8,0.7554]
[1748136712387,0.32686329,2494.6,2493.8,0.7554]
[1748136712546,2.71012294,2495.1,2493.8,0.7554]
[1748136712746,0.37315903,2495.0,2493.8,0.7554]
[1748136714166,1.62147007,2495.2,2493.8,0.7554]
[1748136714363,1.62147007,2495.2,2493.9,0.38146779]
[1748136714570,0.50339375,2495.1,2494.1,0.7869]
[1748136716428,2.76022649,2495.0,2494.1,0.7869]
[1748136716611,2.71012294,2494.7,2494.2,11.999]
[1748136717527,0.37328174,2494.6,2494.3,40.986]
[1748136718222,0.5084,2494.5,2494.3,40.986]
[1748136718399,2.71012294,2494.7,2494.3,40.986]
[1748136718601,0.32185229,2494.6,2494.3,40.986]
[1748136720091,3.21852294,2495.0,2494.3,0.7952]
[1748136720289,0.55,2494.9,2494.3,0.7952]
[1748136720628,0.5084,2494.6,2494.4,11.998]
[1748136720799,0.32185229,2494.5,2494.0,0.7952]
[1748136721003,8.5084,2494.9,2494.1,11.998]
[1748136721339,0.50339375,2495.1,2494.2,8.0]
[1748136721534,0.50339375,2495.1,2494.3,0.7952]
[1748136721731,1.11307007,2495.2,2494.3,0.7952]
[1748136722899,0.5084,2495.5,2494.3,0.7952]
[1748136723207,10.25,2495.5,2494.3,0.7952]
[1748136723425,12.76001361,2495.7,2494.3,0.7952]
[1748136723841,12.25161361,2495.7,2494.3,0.7952]
[1748136724026,2.00161361,2495.7,2494.3,0.7952]
[1748136724223,2.00161361,2495.7,2494.4,0.7957]
[1748136725000,2.00161361,2495.7,2494.6,0.7957]
[1748136725604,0.5284,2495.9,2494.6,0.7957]
[1748136727356,0.02,2495.9,2494.6,0.7957]
[1748136727558,0.02,2495.9,2494.8,8.0]
[1748136727757,0.02,2495.9,2495.0,8.0]
[1748136728079,0.02,2495.9,2495.2,8.0]
[1748136728222,0.02,2495.9,2495.3,28.943]
[1748136728916,0.02,2495.9,2495.3,11.996]
[1748136729765,0.02,2495.9,2495.4,0.7875]
[1748136729968,0.02,2495.9,2495.5,0.55]
[1748136730176,0.37247814,2496.4,2495.6,0.7875]
[1748136730376,0.37247814,2496.4,2495.9,0.55]
[1748136730562,0.37247814,2496.4,2495.7,0.7875]
[1748136730881,2.00161361,2497.0,2495.7,0.7875]
[1748136732085,2.51001361,2497.0,2495.7,0.7875]
[1748136732283,2.00161361,2497.0,2495.6,0.55]
[1748136732440,2.00161361,2497.0,2496.0,0.55]
[1748136732778,2.00161361,2497.0,2495.9,0.7875]
[1748136733988,30.90864266,2496.9,2495.9,0.7875]
[1748136734278,3.29102563,2496.8,2495.9,0.7875]
[1748136735048,3.29102563,2496.8,2496.0,11.992]
[1748136735440,30.90864266,2496.9,2496.1,8.0]
[1748136735645,30.40024266,2496.9,2496.2,0.7875]
[1748136737449,30.40024266,2496.9,2496.3,40.922]
[1748136739003,30.40024266,2496.9,2496.4,11.99]
[1748136739185,0.5084,2496.8,2496.4,11.99]
[1748136739794,3.59926427,2496.8,2496.4,11.99]
[1748136740215,30.40024266,2496.9,2496.4,11.99]
[1748136741899,30.40024266,2496.9,2495.9,0.7557]
[1748136742101,30.40024266,2496.9,2496.1,8.0]
[1748136742662,30.12705233,2496.9,2496.2,11.989]
[1748136744201,0.5084,2496.8,2495.9,1.14687996]
[1748136744375,2.76018945,2496.7,2496.0,11.989]
[1748136744576,0.5084,2496.6,2496.0,11.989]
[1748136745101,0.55847471,2496.6,2496.0,11.989]
[1748136745296,0.5084,2496.6,2496.0,11.989]
[1748136745501,1.13653029,2496.6,2496.0,11.989]
[1748136747122,30.63545233,2496.9,2496.0,11.989]
[1748136747325,30.63545233,2496.9,2496.1,0.7943]
[1748136747544,30.63545233,2496.9,2496.2,16.938]
[1748136747821,30.63545233,2496.9,2496.3,8.0]
[1748136750252,30.63545233,2496.9,2496.3,8.39753677]
[1748136752826,30.63545233,2496.9,2496.3,0.39753677]
[1748136753134,30.63545233,2496.9,2496.1,0.7943]
[1748136754047,30.63545233,2496.9,2496.1,1.19398193]
[1748136754924,30.63545233,2496.9,2496.1,9.19398193]
[1748136757646,30.63545233,2496.9,2496.3,8.0]
[1748136758944,0.5084,2496.8,2496.0,11.989]
[1748136760119,0.37372628,2496.7,2496.1,11.988]
[1748136760743,0.37372628,2496.7,2495.7,0.7708]
[1748136760944,0.5084,2496.6,2496.2,11.988]
[1748136761249,3.21852294,2496.4,2495.8,0.38242981]
[1748136761421,0.5084,2496.2,2495.9,11.988]
[1748136762018,0.37372628,2496.1,2495.9,11.988]
[1748136763356,0.5084,2496.2,2495.9,11.988]
[1748136763852,8.0,2496.6,2495.9,11.988]
[1748136764053,0.5084,2496.5,2495.9,11.988]
[1748136766253,0.37336104,2496.4,2495.9,11.988]
[1748136767028,0.5084,2496.5,2495.9,11.988]
[1748136767413,0.5084,2496.5,2496.0,23.977]
[1748136767618,0.5084,2496.5,2496.0,40.874]
[1748136768047,0.5084,2496.5,2496.0,16.897]
[1748136768230,0.5084,2496.5,2495.9,11.988]
[1748136777479,0.5084,2496.5,2496.0,40.874]
[1748136777977,0.5084,2496.5,2496.0,16.897]
[1748136778183,10.7584,2496.8,2496.0,16.897]
[1748136778340,12.16700012,2496.8,2495.9,11.988]
[1748136778965,0.5084,2496.1,2495.5,0.40729314]
[1748136779172,1.40860012,2496.0,2495.4,0.47857477]
[1748136779382,1.40860012,2496.0,2495.6,11.989]
[1748136779554,1.91700012,2496.1,2495.6,11.989]
[1748136779754,0.5084,2495.8,2495.7,11.989]
[1748136780269,0.5084,2495.8,2494.8,0.8306]
[1748136780471,0.5084,2495.8,2494.9,11.989]
[1748136781061,0.5084,2495.8,2495.0,8.0]
[1748136781260,0.5084,2495.8,2495.1,11.989]
[1748136782244,0.5084,2495.8,2495.1,12.37916104]
[1748136782446,0.5084,2495.8,2495.2,8.7989]
[1748136783490,0.5084,2496.1,2495.2,8.7989]
[1748136783647,1.40860012,2496.0,2495.2,0.7989]
[1748136783850,1.40860012,2496.0,2495.4,8.0]
[1748136784679,1.40860012,2496.0,2495.2,0.7989]
[1748136784879,0.5084,2495.9,2495.1,0.39016104]
[1748136785078,0.5084,2495.9,2495.2,11.99]
[1748136785326,0.5084,2495.5,2494.9,0.7666]
[1748136785523,0.5084,2495.5,2495.3,11.99]
[1748136785869,0.5084,2495.9,2495.3,11.99]
[1748136786606,1.40860012,2495.6,2495.3,11.99]
[1748136786784,0.5084,2495.5,2494.6,0.7666]
[1748136787106,0.5084,2495.5,2494.7,11.991]
[1748136787485,1.40860012,2495.4,2494.8,40.882]
[1748136787673,1.40860012,2495.4,2494.9,11.991]
[1748136787884,0.22386481,2495.8,2495.0,11.991]
[1748136787885,1.40860012,2495.2,2495.0,11.991]
[1748136788084,0.5084,2495.3,2495.0,11.991]
[1748136790201,0.5084,2495.3,2495.1,11.992]
[1748136791349,0.5084,2495.3,2495.2,11.992]
[1748136791922,0.5084,2495.3,2494.3,0.39455695]
[1748136792122,0.5084,2494.8,2494.2,8.7666]
[1748136792353,0.5084,2494.8,2494.4,8.0]
[1748136792559,0.5084,2494.8,2494.2,0.7666]
[1748136792759,1.40860012,2494.7,2493.7,0.47857477]
[1748136793050,0.5084,2494.8,2494.3,11.993]
[1748136794804,8.55,2495.3,2494.4,8.7653]
[1748136794805,0.5084,2495.3,2494.4,8.7653]
[1748136797535,0.5084,2495.3,2494.5,40.847]
[1748136798439,0.5084,2495.3,2494.5,16.858]
[1748136799117,0.5084,2495.3,2494.4,0.7653]
[1748136799118,2.70699119,2495.2,2494.4,0.7653]
[1748136799318,2.70699119,2495.2,2494.3,0.39667272]
[1748136799319,1.0584,2495.0,2494.5,11.994]
[1748136799546,0.5084,2494.7,2494.6,11.994]
[1748136800061,0.5084,2494.7,2494.1,0.02]
[1748136800267,0.5084,2494.7,2494.6,11.994]
[1748136802163,2.399,2495.6,2494.6,11.994]
[1748136802366,0.5084,2495.2,2494.6,11.994]
[1748136802565,0.5084,2495.0,2494.6,11.994]
[1748136802771,1.0584,2495.0,2494.6,11.994]
[1748136802981,0.5084,2495.0,2494.6,11.994]
[1748136804605,0.5084,2495.0,2494.1,0.8327]
[1748136804766,0.32153912,2494.9,2494.7,11.996]
[1748136805283,0.5084,2495.0,2494.7,11.996]
[1748136805488,0.5084,2495.3,2494.7,11.996]
[1748136806917,1.0584,2495.0,2494.1,0.8259]
[1748136807213,3.25699119,2494.8,2494.1,0.02]
[1748136807388,0.5084,2494.4,2494.2,11.996]
[1748136807562,0.5084,2494.4,2494.3,46.13]
[1748136809049,0.5084,2494.4,2494.3,16.86]
[1748136809255,0.5084,2494.4,2494.3,28.856]
[1748136811221,0.5084,2494.4,2494.3,11.996]
[1748136812073,0.5084,2494.6,2494.3,11.996]
[1748136812287,2.70699119,2495.4,2494.3,11.996]
[1748136812514,0.88096454,2495.3,2494.3,11.996]
[1748136812918,0.55,2495.2,2494.3,11.996]
[1748136813132,8.88096454,2495.3,2494.3,11.996]
[1748136813623,0.55,2495.2,2494.3,11.996]
[1748136813803,1.33801434,2495.1,2494.3,11.996]
[1748136813992,0.37256454,2495.1,2494.4,0.8059]
[1748136815309,0.5084,2495.3,2494.4,0.8059]
[1748136816444,0.37321218,2495.2,2494.4,8.8059]
[1748136816819,0.5084,2495.3,2494.4,8.8059]
[1748136817510,0.5084,2495.3,2494.5,23.58]
[1748136819511,0.5084,2495.3,2494.4,8.8059]
[1748136820213,0.5084,2495.3,2494.4,0.8059]
[1748136820624,8.5084,2495.3,2494.4,0.8059]
[1748136821018,0.37339142,2495.2,2494.4,0.8059]
[1748136821461,0.37339142,2495.2,2494.4,8.0]
[1748136821672,0.37339142,2495.2,2494.5,0.8307]
[1748136821835,0.37339142,2495.2,2494.6,0.8307]
[1748136822216,0.22401006,2495.9,2494.6,0.8307]
[1748136822764,0.5084,2495.8,2494.6,0.8307]
[1748136823748,0.55,2495.7,2494.6,0.8307]
[1748136823934,0.55,2495.7,2494.7,11.996]
[1748136823935,0.55,2495.4,2494.7,11.996]
[1748136824255,0.5084,2495.2,2494.4,0.8034]
[1748136824409,0.5084,2495.2,2494.8,11.996]
[1748136826890,0.5084,2495.2,2494.9,11.996]
[1748136827590,0.5084,2495.2,2495.0,40.801]
[1748136828576,1.0584,2495.2,2495.1,11.996]
[1748136828885,1.48993912,2495.2,2495.1,11.996]
[1748136829591,1.0584,2495.2,2495.1,11.996]
[1748136830794,1.43167805,2495.2,2495.1,11.996]
[1748136831885,1.43167805,2495.2,2494.4,0.8034]
[1748136832078,1.43167805,2495.2,2495.1,11.996]
[1748136834308,8.55,2495.1,2494.4,0.8034]
[1748136834465,0.5084,2494.9,2494.2,0.8183]
[1748136834665,0.5084,2494.9,2494.3,11.996]
[1748136836192,0.37333438,2494.8,2494.3,11.996]
[1748136837316,0.5084,2494.9,2494.3,11.996]
[1748136837623,0.55851032,2494.9,2494.4,28.807]
[1748136837781,1.88626481,2494.9,2494.2,0.8183]
[1748136838117,1.88626481,2494.9,2494.3,11.997]
[1748136838278,0.55,2494.8,2494.2,0.8183]
[1748136838482,0.55,2494.8,2494.1,0.02]
[1748136838681,0.55,2494.8,2494.3,11.997]
[1748136839023,0.26602424,2494.7,2494.4,11.997]
[1748136839317,0.55,2494.6,2494.1,0.02]
[1748136839528,0.55,2494.6,2494.5,11.997]
[1748136839704,0.55,2494.6,2494.1,0.02]
[1748136839889,1.0584,2494.6,2494.5,11.997]
[1748136840089,2.86409885,2494.6,2494.1,0.02]
[1748136840290,5.26309885,2494.6,2494.2,11.997]
[1748136840495,0.90313998,2494.6,2494.2,11.997]
[1748136840733,0.37356677,2494.5,2494.2,12.8153]
[1748136841625,1.91935887,2495.0,2494.2,12.8153]
[1748136842542,0.37357265,2494.9,2494.2,12.8153]
[1748136843385,0.37357265,2494.8,2494.2,12.8153]
[1748136843890,0.37357265,2494.8,2494.4,0.8183]
[1748136844429,2.00161361,2495.3,2494.4,0.8183]
[1748136844751,2.14350504,2495.4,2494.4,0.8183]
[1748136844956,1.41095887,2495.2,2494.5,11.997]
[1748136845361,0.37341701,2495.1,2494.5,11.997]
[1748136845556,0.37341701,2495.1,2494.6,0.8183]
[1748136846556,1.41095887,2495.5,2494.6,0.8183]
[1748136846995,1.41095887,2495.1,2494.6,0.8183]
[1748136847199,1.41095887,2494.9,2494.7,11.997]
[1748136847410,0.5084,2494.8,2494.7,11.997]
[1748136847543,0.5084,2494.8,2494.7,28.808]
[1748136847882,1.0584,2494.8,2494.7,11.997]
[1748136848037,1.30533589,2494.8,2494.7,11.997]
[1748136848240,1.30533589,2494.8,2494.1,0.8383]
[1748136848437,1.78422951,2494.7,2494.2,11.997]
[1748136848679,1.78422951,2494.7,2494.1,0.02]
[1748136848852,1.78422951,2494.7,2494.2,11.997]
[1748136849055,1.91935887,2494.5,2494.2,11.997]
[1748136849887,0.5084,2494.5,2494.2,11.997]
[1748136850193,0.5084,2494.5,2494.1,0.02]
[1748136850345,0.55,2494.4,2494.2,11.997]
[1748136850859,0.55,2494.4,2494.3,11.997]
[1748136851168,1.19806461,2494.4,2494.3,11.997]
[1748136851477,1.70646461,2494.4,2494.3,11.997]
[1748136851870,1.70646461,2494.4,2494.1,0.02]
[1748136851871,3.97036021,2494.4,2494.1,0.02]
[1748136852085,0.5084,2494.2,2494.1,0.02]
[1748136852296,0.8816956,2494.4,2494.2,11.997]
[1748136852791,0.22406598,2494.7,2494.2,11.997]
[1748136852792,1.0584,2494.6,2494.2,11.997]
[1748136853668,0.37347394,2494.5,2494.2,11.997]
[1748136854688,1.0584,2494.6,2494.1,0.02]
[1748136854893,1.96424,2494.6,2494.2,11.998]
[1748136855399,4.72363433,2494.6,2494.3,11.998]
[1748136855722,0.5084,2494.4,2494.1,0.02]
[1748136855893,0.5084,2494.4,2494.2,11.999]
[1748136856094,0.55,2494.3,2494.2,11.999]
[1748136856594,5.06940732,2494.3,2494.2,11.999]
[1748136856796,0.55,2494.2,2494.1,0.02]
[1748136857156,0.55,2494.2,2494.1,12.019]
[1748136857694,0.55,2494.2,2494.1,52.779]
[1748136857998,1.45283008,2494.2,2494.1,52.779]
[1748136859194,1.45283008,2494.2,2494.1,28.781]
[1748136859405,1.45283008,2494.2,2494.1,16.782]
[1748136859406,4.16210805,2494.2,2494.1,16.782]
[1748136859619,12.67050805,2494.2,2494.1,28.781]
[1748136859784,12.67050805,2494.2,2494.1,12.019]
[1748136860122,15.29562123,2494.2,2494.1,12.019]
[1748136860597,15.29562123,2494.2,2493.1,0.02]
[1748136860598,0.55,2493.9,2493.1,0.02]
[1748136860798,0.55,2493.5,2493.1,0.02]
[1748136861016,2.7594187,2493.4,2493.2,11.999]
[1748136861328,1.0584,2493.3,2493.1,0.02]
[1748136861638,0.05014324,2493.2,2493.1,0.02]
[1748136861804,1.10854324,2493.3,2493.2,12.001]
[1748136861987,1.0584,2493.3,2493.2,12.001]
[1748136863260,0.5084,2493.5,2493.2,12.001]
[1748136863385,1.0584,2493.5,2493.2,12.001]
[1748136863718,1.4725156,2493.5,2493.2,12.001]
[1748136864828,0.9641156,2493.5,2493.2,12.001]
[1748136865512,0.55,2493.4,2493.3,12.002]
[1748136866233,1.0584,2493.4,2493.3,12.002]
[1748136866977,0.5084,2493.3,2493.1,0.02]
[1748136867113,11.81782871,2493.2,2493.1,0.02]
[1748136867318,11.76767797,2493.2,2493.1,12.022]
[1748136867642,12.141156,2493.2,2493.1,52.796]
[1748136868213,12.141156,2493.2,2493.1,28.79]
[1748136868521,15.66471151,2493.2,2493.1,28.79]
[1748136868859,15.66471151,2493.2,2493.1,16.788]
[1748136869061,15.66471151,2493.2,2493.1,28.791]
[1748136869411,15.66471151,2493.2,2493.1,0.02]
[1748136870059,15.66471151,2493.2,2493.1,12.023]
[1748136870631,25.91471151,2493.2,2493.1,12.023]
[1748136870858,26.28596768,2493.2,2493.1,12.024]
[1748136872647,0.55,2492.5,2491.4,0.8221]
[1748136872911,8.55,2492.2,2491.4,0.8221]
[1748136873042,8.55,2492.2,2492.1,12.024]
[1748136873238,9.0584,2492.2,2492.1,12.024]
[1748136873842,11.8585932,2492.2,2492.1,12.024]
[1748136874072,11.8585932,2492.2,2492.1,12.026]
[1748136874280,13.34489032,2492.2,2492.1,12.026]
[1748136874883,13.71526979,2492.2,2492.1,12.026]
[1748136876287,0.55,2491.4,2489.3,1.30067477]
[1748136876444,13.66027797,2490.3,2490.2,12.006]
[1748136876641,12.3170278,2490.3,2490.2,12.006]
[1748136876887,8.55,2490.2,2489.8,0.8221]
[1748136877091,8.55,2490.2,2490.1,12.028]
[1748136877272,8.55,2490.2,2490.1,0.02]
[1748136877457,4.25088075,2490.2,2490.1,46.095]
[1748136877663,3.25927797,2490.2,2490.1,28.803]
[1748136878178,3.25927797,2490.2,2490.1,12.028]
[1748136878179,3.66765853,2490.2,2490.1,12.028]
[1748136878607,8.95838056,2490.2,2490.1,12.028]
[1748136880381,8.95838056,2490.2,2490.1,12.032]
[1748136881716,11.66765853,2490.2,2490.1,12.032]
[1748136881873,12.88326438,2490.2,2490.1,12.032]
[1748136882320,10.17398641,2490.2,2490.1,12.032]
[1748136882479,12.88326438,2490.2,2490.1,12.032]
[1748136882814,12.88326438,2490.2,2489.3,3.8221]
[1748136882815,0.55,2490.0,2489.3,3.8221]
[1748136883021,3.25927797,2489.4,2489.3,3.8221]
[1748136883174,3.25927797,2489.4,2489.3,15.8371]
[1748136883378,3.25927797,2489.4,2489.3,3.0]
[1748136883578,3.25927797,2489.4,2489.3,15.015]
[1748136887622,0.55,2489.4,2489.3,31.758]
[1748136888136,4.79760441,2490.0,2489.4,0.8199]
[1748136888288,2.70927797,2490.0,2489.4,0.8199]
[1748136888488,8.55,2489.9,2489.4,0.8199]
[1748136888691,0.55,2489.6,2489.4,0.8199]
[1748136889081,0.55,2489.6,2489.5,12.02]
[1748136889509,8.8759278,2489.6,2489.5,12.02]
[1748136889924,8.8759278,2489.6,2489.3,3.0]
[1748136890125,0.8759278,2489.6,2489.5,12.02]
[1748136890285,0.55,2489.6,2489.5,12.02]
[1748136891300,11.25927797,2489.6,2489.5,12.02]
[1748136891646,0.55,2489.2,2489.1,0.02]
[1748136891792,11.25927797,2489.2,2489.1,12.042]
[1748136891993,12.43404577,2489.2,2489.1,12.042]
[1748136893420,7.164,2489.0,2487.8,0.7578]
[1748136893620,0.55,2488.4,2488.2,12.022]